Cogmind - Beta 16 @@@ ROGUE MODE // 2025.12.21 @ 17:05:18 Player: ae Result: Destroyed by G-50 Soldier with Heavy Laser Performance ------------- Evolutions (4) 2000 Regions Visited (5) 1000 Robots Destroyed (32) 160 Value Destroyed (1112) 1112 Prototype IDs (6) 120 Alien Tech Used (0) 0 Bonus (911) 911 TOTAL SCORE: 5303 Bonus ------- High Alert Combat Kills 51 Follower Combat Kills 74 Registered with UFD 300 Met Optimus in HQ 500 Friendly Fire -14 Cogmind --------- Core Integrity 0/850 Matter 144/300 Energy 100/100 System Corruption 5% Temperature Cool (9) Movement Core (100) Ox1 Location -6/Extension Parts ------- > --- POWER (1) -------- (None) > --- PROPULSION (6) --- (None) > --- UTILITY (6) ------ Improved Trap Scanner > --- WEAPON (2) ------- Power Sword > --- INVENTORY (5) ---- Overtuned Titanium Leg Power Amplifier Improved Heat Sink Improved Terrain Scanner Phasing Sabre Peak State ------------ > --- POWER ------------ Light Fission Core > --- PROPULSION ------- Overtuned Titanium Leg Overtuned Titanium Leg Overtuned Titanium Leg Armored Huge Wheel Gravmag System > --- UTILITY ---------- Scrap Suit Small Storage Unit Improved Trap Scanner Advanced Sensor Array Makeshift Hacking Suite > --- WEAPON ----------- Coil Gun Magnetic Acceleration Cannon > --- INVENTORY -------- Light Nuclear Core Power Amplifier Improved Heat Sink Improved Heat Sink Matter Compressor IFF Parser Improved Terrain Scanner Remote Datajack [Rating: 62] Favorites ----------- Power Light Fission Core Engine Light Deuterium Engine Power Core Light Fission Core Propulsion Overtuned Titanium Leg Leg Overtuned Titanium Leg Wheel Wheel Hover Unit Gravmag System Utility Small Storage Unit Device Improved Terrain Scanner Storage Small Storage Unit Hackware Makeshift Hacking Suite Weapon Magnetic Acceleration Cannon Energy Gun Overtuned Pulse Rifle Ballistic Gun Coil Gun Ballistic Cannon Magnetic Acceleration Cannon Launcher Improved Proton Missile Launcher Slashing Weapon Power Sword Build | -11 -10 -10 -9 -6 -6 ------- Run | Yrd Mat Sub Scr Fac Ext Slots Evolved 8 | . . . . 8 . Power . | . . . . . . Propulsion 4 | . . . . 4 . Utility 4 | . . . . 4 . Weapon . | . . . . . . Parts Attached 36 | 7 . 2 5 19 3 Power 6 | 1 . 1 2 2 . Engine 4 | 1 . 1 2 . . Core 2 | . . . . 2 . Reactor . | . . . . . . Propulsion 13 | 2 . 1 2 6 2 Treads . | . . . . . . Leg 8 | . . . 2 4 2 Wheel 4 | 2 . 1 . 1 . Hover 1 | . . . . 1 . Flight . | . . . . . . Utility 9 | 2 . . . 7 . Device 7 | 1 . . . 6 . Storage 1 | 1 . . . . . Processor . | . . . . . . Hackware 1 | . . . . 1 . Protection . | . . . . . . Artifact . | . . . . . . Weapon 8 | 2 . . 1 4 1 Energy Gun 1 | . . . 1 . . Energy Cannon . | . . . . . . Ballistic Gun 3 | 2 . . . 1 . Ballistic Cannon 1 | . . . . 1 . Launcher 2 | . . . . 2 . Special Weapon . | . . . . . . Impact Weapon . | . . . . . . Slashing Weapon 1 | . . . . . 1 Piercing Weapon . | . . . . . . Special Melee Weapon . | . . . . . . Unidentified Prototypes . | . . . . . . Parts Lost 14 | . . . . 5 9 Power 2 | . . . . 1 1 Propulsion 5 | . . . . 1 4 Utility 2 | . . . . 1 1 Weapon 5 | . . . . 2 3 Highest Loss Streak 3 | . . . . 2 3 To Critical Strikes . | . . . . . . Average Backups 7 | 4 8 8 7 7 6 Power . | . 1 1 . . . Propulsion 2 | 2 4 4 3 . 1 Utility 2 | . 1 1 1 4 3 Weapon 1 | . 1 2 2 1 1 Tool/Special . | . . . . . . Unused Backups 14 | . 1 1 4 4 4 Power . | . . . . . . Propulsion 5 | . 1 1 3 . . Utility 5 | . . . 1 2 2 Weapon 3 | . . . . 1 2 Tool/Special 1 | . . . . 1 . Average Slot Usage (%) 71 | . 100 100 64 84 46 Engine 4 | . 14 14 6 1 . Core 1 | . . . . 4 4 Leg 12 | . . . 1 26 16 Wheel 14 | . 28 28 26 2 . Device 15 | . 14 14 14 20 4 Storage 10 | . 14 14 14 6 5 Hackware 2 | . . . . 5 5 Energy Gun 1 | . . . . 3 . Ballistic Gun 2 | . 28 28 . 2 1 Ballistic Cannon 1 | . . . . 3 1 Launcher 1 | . . . . 2 2 Peak Build Rating 62 | 9 9 11 18 62 48 Average Rating 26 | 6 9 10 7 53 26 On Entrance 15 | . 9 9 11 18 45 Avg Prop Armor Cover (%) 8 | . . . 9 8 15 Naked Turns . | . . . . . . Heaviest Build 33 | 13 13 15 15 33 27 Greatest Support 93 | 20 20 30 38 93 36 Greatest Overweight (x) 3 | . . . 1 . 3 Average Overweight (x) . | . . . . . . Largest Inventory Capacity 8 | 8 8 8 8 8 8 Average Capacity 7 | 7 8 8 8 8 7 Most Carried 8 | 8 8 8 8 8 8 Average Carried 7 | 4 8 8 7 7 6 Final Capacity 8 | 8 8 8 8 8 5 Final Carried 8 | 8 8 8 8 7 5 Scrap Suit Usage (%) 35 | . . . . 98 . Parts Cannibalized 7 | . . . . 7 . Class Distribution -------------------- 60% | Mutant 34% | Scavenger-Scrapper 4% | Scavenger-Mutant Dominant Class ---------------- Mutant | -10/Subcaves Mutant | -9/Scraptown Scavenger-Scrapper | -6/Factory Mutant | -6/Extension Resources | -11 -10 -10 -9 -6 -6 ----------- Run | Yrd Mat Sub Scr Fac Ext Matter Collected 862 | 235 . 91 80 300 156 Remotely . | . . . . . . Salvage Created 845 | 40 . . . 641 164 Parts 54 | 6 . . . 43 5 Haulers Intercepted . | . . . . . . Recyclers Shooed 1 | . . . . 1 . Parts Field Recycled . | . . . . . . Retrieved Matter . | . . . . . . Parts Self-Destructed 3 | . . 3 . . . Prevented . | . . . . . . Parts Restored . | . . . . . . Kills | -11 -10 -10 -9 -6 -6 ------- Run | Yrd Mat Sub Scr Fac Ext Combat Hostiles Destroyed 25 | . . . . 24 1 Guns 6 | . . . . 6 . Cannons 7 | . . . . 6 1 AOE 12 | . . . . 12 . Classes Destroyed 10 | 1 . . . 8 1 Worker 1 | . . . . 1 . Builder 1 | . . . . 1 . Tunneler 2 | 2 . . . . . Recycler 1 | . . . . . 1 Watcher 2 | . . . . 2 . Swarmer 16 | . . . . 16 . Grunt 3 | . . . . 3 . Sentry 1 | . . . . 1 . Hunter 1 | . . . . 1 . Programmer 4 | . . . . 3 1 Best Kill Streak 5 | 2 . . . 5 1 Combat Bots Only 5 | . . . . 5 1 Max Kills in Single Turn 4 | 1 . . . 4 1 Gunslinging . | . . . . . . Exploded 3 | . . . . 3 . Melee . | . . . . . . Uniques/NPCs Destroyed . | . . . . . . Combat | -11 -10 -10 -9 -6 -6 -------- Run | Yrd Mat Sub Scr Fac Ext Hostile Shots Fired 333 | . . 1 6 142 184 Missed 124 | . . . 3 51 70 Hits 209 | . . 1 3 91 114 Projectile 209 | . . 1 3 91 114 Critical Strikes 4 | . . . . 2 2 Damage Taken 3001 | . . 40 67 1570 1324 Core 888 | . . . 24 233 631 Absorbed by Shields . | . . . . . . Regen/Repaired (Parts) 52 | . . . . 52 . Core Remaining (%) 95 | 100 . . 90 . . Volleys Fired 49 | 3 . 3 . 34 9 Largest 2 | 2 . 2 . 2 1 Hottest 124 | 40 . 40 . 124 44 Shots Fired 80 | 6 . 6 . 59 9 Gun 37 | 6 . 6 . 25 . Cannon 35 | . . . . 28 7 Launcher 8 | . . . . 6 2 Special . | . . . . . . Kinetic 60 | 6 . 6 . 41 7 Thermal 12 | . . . . 12 . Explosive 1 | . . . . 1 . Electromagnetic 7 | . . . . 5 2 Robot Hit Streak 11 | 1 . 3 . 11 3 Robot Miss Streak 2 | 2 . 1 . 2 2 Penetration Max 2 | . . . . 2 . Secondary Targets . | . . . . . . Shots Hit Robots 49 | 2 . 4 . 38 5 Core Hits 45 | 2 . . . 37 6 Critical Kills . | . . . . . . Critical Parts Destroyed . | . . . . . . Critical Strikes 2 | . . . . 1 1 Blast 2 | . . . . 1 1 Melee Attacks 1 | . . . . . 1 Impact . | . . . . . . Slashing 1 | . . . . . 1 Piercing . | . . . . . . Sneak Attacks . | . . . . . . Combat Hostiles . | . . . . . . Follow-up Attacks . | . . . . . . Damage Inflicted 2714 | 40 . 29 . 2391 254 Guns 584 | 40 . 29 . 515 . Cannons 687 | . . . . 582 105 Explosions 1411 | . . . . 1262 149 Melee . | . . . . . . Ramming 32 | . . . . 32 . Kinetic 1083 | 40 . 29 . 909 105 Thermal 774 | . . . . 774 . Explosive 386 | . . . . 386 . Electromagnetic 439 | . . . . 290 149 Impact . | . . . . . . Slashing . | . . . . . . Piercing . | . . . . . . Highest Corruption 5 | . . . . 4 5 Average Corruption 3 | . . . . 2 4 Corruption Purged . | . . . . . . Corruption Blocked . | . . . . . . Effects 30 | . . . . 16 14 Message Errors 5 | . . . . 4 1 Matter Fused 9 | . . . . 4 5 Heat Flow Errors 4 | . . . . 2 2 Energy Discharges 5 | . . . . 2 3 Parts Rejected 1 | . . . . . 1 Data Loss (minor) 4 | . . . . 2 2 Misfires 1 | . . . . 1 . Weapon Failures 1 | . . . . 1 . Overload Shots . | . . . . . . Overflow Damage 173 | . . . . 173 . Projectiles 13 | . . . . 13 . Explosions 160 | . . . . 160 . Melee . | . . . . . . Knockbacks 8 | . . . . 8 . Impact . | . . . . . . Kinetic 7 | . . . . 7 . Secondary 1 | . . . . 1 . Self-Inflicted Damage 220 | . . . . 220 . Shots 5 | . . . . 5 . Rammed . | . . . . . . Targets Rammed 5 | . . . . 5 . Kicked 5 | . . . . 5 . Crushed . | . . . . . . Highest Temperature 294 | . . . . 294 237 Average Temperature 95 | . . . . 95 94 Received Heat Transfer 564 | . . 12 36 75 441 Siege Activations . | . . . . . . Martial Activations . | . . . . . . Shielding Activations . | . . . . . . Robots Disrupted . | . . . . . . Combat Hostiles . | . . . . . . Robots Corrupted . | . . . . . . Combat Hostiles . | . . . . . . Parts Fried 4 | . . . . 3 1 Impact Corruptions . | . . . . . . Robots Melted . | . . . . . . Combat Hostiles . | . . . . . . Parts Melted . | . . . . . . Heat Transferred 900 | . . . . 900 . Parts Sabotaged . | . . . . . . Parts Stolen . | . . . . . . Parts Stripped . | . . . . . . Power Chain Reactions 4 | . . . . 4 . Alert | -11 -10 -10 -9 -6 -6 ------- Run | Yrd Mat Sub Scr Fac Ext Maximum Alert Level 2 | . . . . 2 1 Low Security (%) 60 | 100 100 . . 49 86 Level 1 20 | . . . . 24 13 Level 2 19 | . . . . 26 . Level 3 . | . . . . . . Level 4 . | . . . . . . Level 5 . | . . . . . . High Security . | . . . . . . Max Security . | . . . . . . Peak Influence 485 | 5 . . . 485 230 Initial 230 | . . . . . 230 Average 181 | . . . . 208 141 Influence Increases 1264 | 10 . . . 932 322 Destroy 0b10 Robot/C 540 | . . . . 480 60 Destroy 0b10 Robot/NC 35 | 10 . . . 20 5 Destroy Leader 124 | . . . . 104 20 Allied During Kill 8 | . . . . . 8 Successful Hack 38 | . . . . 38 . Disable Machine 135 | . . . . 135 . Destroy Structure 99 | . . . . 95 4 Partial Spotted 15 | . . . . 15 . Lose Combat Pursuer 270 | . . . . 45 225 Influence Decreases 1088 | 10 . . . 461 617 Entered New Map 241 | . . . . . 241 Time Decay 667 | 10 . . . 411 246 Lost Part 140 | . . . . 50 90 Lost Ally 40 | . . . . . 40 Squads Dispatched 11 | . . . . 8 3 Investigation 2 | . . . . 2 . Extermination 3 | . . . . 3 . Reinforcement 5 | . . . . 2 3 Assault 1 | . . . . 1 . Garrison . | . . . . . . Intercept . | . . . . . . Searches Triggered . | . . . . . . Construction Impeded 2 | . . . . 1 1 Haulers Reinforced . | . . . . . . Active Scanning Responses . | . . . . . . Cargo Convoy Interrupts . | . . . . . . Stealth | -11 -10 -10 -9 -6 -6 --------- Run | Yrd Mat Sub Scr Fac Ext Distress Signals 3 | . . . . 2 1 Communications Jammed . | . . . . . . Distress Signals . | . . . . . . Times Spotted 72 | . . 2 13 33 24 Peak Tracking Total 8 | . . 2 4 6 8 Tactical Retreats 11 | . . . . 3 8 Traps | -11 -10 -10 -9 -6 -6 ------- Run | Yrd Mat Sub Scr Fac Ext Traps Triggered 1 | . . . . 1 . Indirectly . | . . . . . . Trap Hack Attempts . | . . . . . . Triggered . | . . . . . . Disarmed . | . . . . . . Reprogrammed . | . . . . . . Reused . | . . . . . . Traps Extracted . | . . . . . . Installed . | . . . . . . Triggered . | . . . . . . Machines | -11 -10 -10 -9 -6 -6 ---------- Run | Yrd Mat Sub Scr Fac Ext Machines Disabled 9 | . . . . 9 . Max in Single Turn 5 | . . . . 5 . Machines Repaired . | . . . . . . Machines Dismantled . | . . . . . . Machines Sabotaged . | . . . . . . Overloaded Fab Kills . | . . . . . . Hacking | -11 -10 -10 -9 -6 -6 --------- Run | Yrd Mat Sub Scr Fac Ext Machines Accessed 18 | . 1 . 11 5 1 Terminals 3 | . . . . 2 1 Fabricators . | . . . . . . Repair Stations . | . . . . . . Recycling Units 3 | . 1 . . 2 . Scanalyzers 1 | . . . . 1 . Garrison Access . | . . . . . . Total Hacks 90 | . 2 . 78 9 1 Successful 88 | . 2 . 78 7 1 Failed 2 | . . . . 2 . Catastrophic 1 | . . . . 1 . Database Lockouts . | . . . . . . Manual 7 | . 1 . 1 5 . Terminals 5 | . . . . 4 1 Fabricators . | . . . . . . Repair Stations . | . . . . . . Recycling Units 4 | . 2 . . 2 . Scanalyzers 3 | . . . . 3 . Garrison Access . | . . . . . . Terminal Hacks 81 | . . . 78 2 1 Record 74 | . . . 73 1 . Robot Analysis 4 | . . . 4 . . Open Door 1 | . . . . . 1 Branch Access Points 1 | . . . . 1 . Proto ID Catalog 1 | . . . 1 . . Fabricator Hacks . | . . . . . . Repair Station Hacks . | . . . . . . Recycling Unit Hacks 2 | . 2 . . . . Process 1 | . 1 . . . . Report Inventory 1 | . 1 . . . . Scanalyzer 3 | . . . . 3 . Retrieve Study 3 | . . . . 3 . Garrison Access Hacks . | . . . . . . Unauthorized Hacks 2 | . . . . 2 . Terminals . | . . . . . . Fabricators . | . . . . . . Repair Stations . | . . . . . . Recycling Units 2 | . . . . 2 . Fedlink 2 | . . . . 2 . Scanalyzers . | . . . . . . Garrison Access . | . . . . . . Data Cores Recovered . | . . . . . . Used . | . . . . . . Hacking Detections 4 | . 1 . . 3 . Full Trace Events . | . . . . . . Feedback Events . | . . . . . . Feedback Blocked . | . . . . . . Robot Schematics Acquired . | . . . . . . Robots Built . | . . . . . . Authchips . | . . . . . . Time . | . . . . . . Total Robot Build Rating . | . . . . . . Part Schematics Acquired . | . . . . . . Parts Built . | . . . . . . Authchips . | . . . . . . Time . | . . . . . . Total Part Build Rating . | . . . . . . Part Studies Acquired 3 | . . . . 3 . Parts Repaired . | . . . . . . Time . | . . . . . . Parts Recycled . | . . . . . . Recycled Matter 22 | . 22 . . . . Retrieved Matter . | . . . . . . Retrieved Components . | . . . . . . Parts Scanalyzed . | . . . . . . Part Schematics Acquired . | . . . . . . Parts Damaged . | . . . . . . Bothacking | -11 -10 -10 -9 -6 -6 ------------ Run | Yrd Mat Sub Scr Fac Ext Used RIF Installer . | . . . . . . Robots Hacked . | . . . . . . Non-combat . | . . . . . . Combat . | . . . . . . Robot Hacks Applied . | . . . . . . Relay Couplers Released . | . . . . . . Fabnet Peak Effective % . | . . . . . . Robots Rewired . | . . . . . . Allies Hacked . | . . . . . . Hacks Repelled . | . . . . . . Allies | -11 -10 -10 -9 -6 -6 -------- Run | Yrd Mat Sub Scr Fac Ext Total Allies 2 | . . . . . 2 Largest Group 2 | . . . . . 2 Highest-Rated Group 40 | . . . . . 40 Highest-Rated Ally 20 | . . . . . 20 Total Orders . | . . . . . . Ally Attacks 15 | . . . . . 15 Total Damage 439 | . . . . . 439 Kills 2 | . . . . . 2 Allies Corrupted 1 | . . . . . 1 Allies Melted 7 | . . . 7 . . Intel | -11 -10 -10 -9 -6 -6 ------- Run | Yrd Mat Sub Scr Fac Ext Active Infowar (turns) 4013 | 27 28 165 2025 1565 203 Sensors 1242 | . . . . 1049 193 IFF 381 | . . . . 381 . Terrain 2380 | 27 28 165 2025 135 . Traps 1165 | . . . . 1048 117 Robot Analysis Total 4 | . . . 4 . . Derelict Logs Recovered 2 | . . . 2 . . Drone Launches . | . . . . . . Drone Recoveries . | . . . . . . Exploration | -11 -10 -10 -9 -6 -6 ------------- Run | Yrd Mat Sub Scr Fac Ext Turns Passed 4396 | 88 28 165 2025 1565 525 Spaces Moved 4284 | 75 33 140 2397 1191 448 Core 69 | 1 . . . . 68 Treads . | . . . . . . Legs 1681 | . . . 110 1191 380 Wheels 2534 | 74 33 140 2287 . . Hover . | . . . . . . Flight . | . . . . . . Fastest Speed 50 | 50 80 80 80 95 90 Average Speed 90 | 79 80 93 83 99 104 Slowest Speed 270 | 80 80 95 100 100 270 Overloaded Moves . | . . . . . . Propulsion Burnouts . | . . . . . . Robots Hopped . | . . . . . . Potential Cave-ins . | . . . . . . Cave-ins Triggered . | . . . . . . Exploration Rate (%) 30 | 4 5 7 93 24 48 Regions Visited 5 Branch Regions 3 Pre-discovered Areas 1 | . . . . 1 . Known Exits Taken 2 | . . . 1 1 . Unknown Exits Taken 3 | 1 1 1 . . . Scrap Searched . | . . . . . . Spaces Dug 1 | . . . . . 1 Terrain Destroyed 112 | . . . . 108 4 Melee . | . . . . . . Projectile 12 | . . . . 8 4 AOE 100 | . . . . 100 . Terrain Rammed . | . . . . . . Walls Destroyed . | . . . . . . Machines Disabled . | . . . . . . Actions | -11 -10 -10 -9 -6 -6 --------- Run | Yrd Mat Sub Scr Fac Ext Total 4733 | 94 34 168 2428 1513 496 Wait 280 | . . 22 2 231 25 Move 4279 | 74 32 139 2396 1190 448 Hop . | . . . . . . Pick Up 35 | 9 1 . 7 16 2 Fast Attach 16 | 7 . . 4 5 . Attach 17 | . . . 3 9 5 Detach 6 | . . . 2 1 3 Swap 14 | . . 2 1 11 . Drop 31 | 1 1 2 13 11 3 Fire 49 | 3 . 3 . 34 9 Melee 1 | . . . . . 1 Ram . | . . . . . . Kick 5 | . . . . 5 . Crush . | . . . . . . Escape Stasis . | . . . . . . Rewire . | . . . . . . Trap . | . . . . . . Miscellaneous . | . . . . . . Route ------- -11/Scrapyard -10/Materials -10/Subcaves -9/Scraptown (discovered 2 exits: *Fac x2) -6/Factory (discovered 4 exits: Low x2 / *Ext x2) -6/Extension History --------- Turn | Location | Event 33 | -11/Scrapyard | Discovered new exit (range 14) 89 | -11/Scrapyard | Entered Materials 90 | -10/Materials | Met a group of wandering Federalists 114 | -10/Materials | Discovered new exit (range 5) 117 | -10/Materials | Entered Subcaves 117 | -10/Subcaves | Accompanied by 2 allies 118 | -10/Subcaves | Continued accompanying wandering Federalists (4) 118 | -10/Subcaves | Approached by a straggling Scientist 206 | -10/Subcaves | Scientist uncovered a shortcut to Scraptown 282 | -10/Subcaves | Entered Scraptown 305 | -9/Scraptown | Build established: Mutant 457 | -9/Scraptown | Visited SPCMW 499 | -9/Scraptown | Visited Red Mages 544 | -9/Scraptown | Heard Great Nut preacher, LISTEN AND RECITE! 559 | -9/Scraptown | Visited Supply Room 905 | -9/Scraptown | Discovered new exit (range 5) 973 | -9/Scraptown | Visited Cyclists 1140 | -9/Scraptown | Scanned Subdweller tech in exchange for log data 1143 | -9/Scraptown | Learned Factory stockpile data 1144 | -9/Scraptown | Learned location of 2 exits from Upper Caves 1279 | -9/Scraptown | Visited The Evicted 1399 | -9/Scraptown | Visited UFD Registry 1421 | -9/Scraptown | Visited TADAMA 1431 | -9/Scraptown | Visited Cave Peace 1664 | -9/Scraptown | Registered with UFD as "Thunderbank" 1756 | -9/Scraptown | Entered Cyclist Reading Room 1818 | -9/Scraptown | Visited Science Guys 1848 | -9/Scraptown | Visited Junk Repository 1877 | -9/Scraptown | Visited Scrap Suit Storage 2047 | -9/Scraptown | Met Optimus 2047 | -9/Scraptown | Accepted into 0bPrime 2106 | -9/Scraptown | Visited Scrapoid Pod Storage 2131 | -9/Scraptown | Visited Research Penetration Think Tank 2145 | -9/Scraptown | Visited Analyses Database 2174 | -9/Scraptown | Civil war broke out across Scraptown 2210 | -9/Scraptown | Found Scrap Suit 2238 | -9/Scraptown | Lost 9 allies 2248 | -9/Scraptown | Identified exit to Factory 2307 | -9/Scraptown | Entered Factory 2307 | -6/Factory | Evolved 8 slots: Propulsion x4, Utility x4 2391 | -6/Factory | Loaded intel: 8 recycling unit locations 2591 | -6/Factory | Build established: Scavenger-Scrapper 2847 | -6/Factory | Identified exit to Lower Caves 2847 | -6/Factory | Identified exit to Extension 3355 | -6/Factory | Learned location of Protoforge (-3) 3707 | -6/Factory | First assault squad dispatched 3872 | -6/Factory | Entered Extension 4053 | -6/Extension | Spotted B-75 Beast 4189 | -6/Extension | Rescued a captive Derelict 4190 | -6/Extension | Rescued a captive Derelict 4233 | -6/Extension | Core integrity fell below 50% 4243 | -6/Extension | Build established: Mutant 4260 | -6/Extension | Lost 3 parts (1p1n1w) 4390 | -6/Extension | Core integrity fell below 20% 4397 | -6/Extension | Destroyed by G-50 Soldier with Heavy Laser Last Messages --------------- C7-904(b) system corrupted by crushing effect. C7-904(b) destroyed. Acquired 107 matter. VSS Leg destroyed. Magnetic Acceleration Cannon destroyed. Lgt. Nuclear Core destroyed. U-05 Engineer destroyed. System corrupted: Energy discharge (-37). System corrupted: Matter fused (-9). System corrupted: Energy discharge (-20). VSS Leg destroyed. System corrupted: Matter fused (-9). Discarded Mak. Hacking Suite. Dropped Sml. Storage Unit. Dropped Hvy. Laser. Y-54 Guardian springs to life. Acquired Phasing Sabre. Y-54 Guardian springs to life. System corrupted: Energy discharge (-25). Critical hit (Burn: +37). Map ----- +----------------------------------------------------+ | | | | | | | | | | | | | | | | | | | | | | | | | | | | | | | | | | | | | | | ?????????????????????????????????????????????????? | | ???????????????#######################???????????? | | ???????????????# #???????????? | | ######?????????# #???????????? | | #?????????# #?????####### | | #?????????# #?????# | | #???####### o @ #?????# ##### | | #???# g o #?????# #???? | | #???# g #?????# #???? | | ##### b = = #?????# #???? | | g% =%! ####### ##### | | ###########/ ####| | | #????????#T #?# | | #????#???## ##?# | | ##/##"T"###??# #??# | | # #??####??# | | / "Y" ==??????????# | | ######### """ ==??????????###########"T########## | | ????????? ?????????????????????#""#????????? | | ?????????#""T""# #???????????????????####????????? | | ??????????""""?#?????????????????????????????????? | | ?????????????????????????????????????????????????? | | ?????????????????????????????????????????????????? | | ?????????????????????????????????????????????????? | | ?????????????????????????????????????????????????? | | ?????????????????????????????????????????????????? | | ?????????????????????????????????????????????????? | | ?????????????????????????????????????????????????? | | ?????????????????????????????????????????????????? | | ?????????????????????????????????????????????????? | | ?????????????????????????????????????????????????? | +----------------------------------------------------+ Best States ------------- Heat Dissipation 65 Energy Generation 19 Energy Capacity 250 Matter Stores 300 Matter Capacity 300 Sight Range 16 Robot Scan Range 16 Terrain Scan Range 16 Terrain Scan Density 10 Evasion (%) 57 Offensive Hacking 11 Item Schematics ----------------- None Robot Schematics ------------------ None Fabricated ------------ Nothing Repaired ---------- Nothing Studied --------- Remote Datajack | -6/Factory | Hacked Arm. Huge Wheel | -6/Factory | Hacked Lgt. Fission Core | -6/Factory | Hacked Alien Tech Used ----------------- None Achievements -------------- Armchair Analyst Bob, First Of His Name Brute Force Bumper Bots Civilization 2243 DATA ERROR: Steam Global Achievement% For Emergencies Only Item+ Link The Feds Nice Directions, Buddy Organ Harvest Overwhelming Sprinter Strength In Numbers There's More Where That Came From Uncivil War Challenges ------------ None Game ------ Seed SensorGrapheneCannon Manual? 0 Play Time 01:40:29 Cumulative 38.3 hours Start 2025.12.21 @ 13:32:56 End 2025.12.21 @ 17:05:18 Sessions 1 Manual Loads 0 Difficulty Rogue Special Mode None Game No. 19 Rogue 15 Adventurer 4 Explorer 0 Win Type - Total 0 Types 0/0/0/0/0/0/0/0/0/0 Lore% 22 Gallery% 27 Achievement% 17 Wizard Run 0 Options --------- Layout 1 ASCII 0 Keyboard 1 Movement Vi Keybinds 0 Fullscreen 0 Font 20/SmallcapsGlow Map View 50x35 Zoom Use 0% Tactical HUD 0 Map Filters NONE Filters NONE Steam 1 RUN: 8ec18151-3a74-44ba-8092-4a09c396c05a